bitfinex/quotes_BTCUSD_20250910
["timestamp","ask_amount","ask_price","bid_price","bid_amount"]
[1757538863068,0.36166621,113740.0,113730.0,0.22248067]
[1757538863706,0.36166621,113740.0,113730.0,0.22548067]
[1757538866222,0.378031,113740.0,113730.0,0.22548067]
[1757538866642,0.24832552,113740.0,113730.0,0.22548067]
[1757538866837,0.378031,113740.0,113730.0,0.22548067]
[1757538869893,0.24832552,113740.0,113730.0,0.22548067]
[1757538870109,0.378031,113740.0,113730.0,0.22548067]
[1757538872422,0.378031,113740.0,113730.0,0.01124067]
[1757538872658,0.378031,113740.0,113730.0,0.15788067]
[1757538873291,0.38624359,113740.0,113730.0,0.15788067]
[1757538873902,0.51594907,113740.0,113730.0,0.15788067]
[1757538874468,0.64618245,113740.0,113730.0,0.15788067]
[1757538874675,0.64618245,113740.0,113730.0,0.17630785]
[1757538874873,0.62981766,113740.0,113730.0,0.17630785]
[1757538875073,0.66518062,113740.0,113730.0,0.17630785]
[1757538875506,0.65696803,113740.0,113730.0,0.17630785]
[1757538876241,0.6651859,113740.0,113730.0,0.17630785]
[1757538876834,0.6651859,113740.0,113730.0,0.15788067]
[1757538877419,0.65696803,113740.0,113730.0,0.15788067]
[1757538879490,0.63057693,113740.0,113730.0,0.15788067]
[1757538880706,0.63879732,113740.0,113730.0,0.15788067]
[1757538881107,0.97879732,113740.0,113730.0,0.01124067]
[1757538881314,1.06642084,113740.0,113730.0,0.01124067]
[1757538881915,0.56551489,113720.0,113710.0,0.13799254]
[1757538882086,0.61160497,113720.0,113710.0,0.29882489]
[1757538882308,0.22196063,113720.0,113710.0,0.29882489]
[1757538882527,0.61160497,113720.0,113710.0,0.29882489]
[1757538883321,0.61160497,113720.0,113710.0,0.30682489]
[1757538883523,0.61160497,113720.0,113710.0,0.23931235]
[1757538884522,0.61160497,113720.0,113710.0,0.23941235]
[1757538884717,0.67890815,113720.0,113710.0,0.23941235]
[1757538886056,0.67890815,113720.0,113710.0,0.2256031]
[1757538886266,0.67890815,113720.0,113710.0,0.1581231]
[1757538887183,0.28926381,113720.0,113710.0,0.1581231]
[1757538887379,0.67890815,113720.0,113710.0,0.1581231]
[1757538893451,0.67890815,113720.0,113710.0,0.0115631]
[1757538894342,0.66247807,113720.0,113710.0,0.0115631]
[1757538894558,0.41951373,113720.0,113710.0,0.0115631]
[1757538894971,0.80915807,113720.0,113710.0,0.0115631]
[1757538896655,0.81777924,113720.0,113710.0,0.0115631]
[1757538897095,0.35221055,113720.0,113710.0,0.0115631]
[1757538897311,0.74185489,113720.0,113710.0,0.0115631]
[1757538898817,0.74195489,113720.0,113710.0,0.0115631]
[1757538899397,0.80724036,113720.0,113710.0,0.0115631]
[1757538899783,1.14724036,113720.0,113710.0,0.0115631]
[1757538900166,1.14724036,113720.0,113710.0,0.0035631]
[1757538900349,1.14724036,113720.0,113710.0,0.0065631]
[1757538900559,1.14724036,113720.0,113710.0,0.0035631]
[1757538900975,1.14724036,113720.0,113710.0,0.0055631]
[1757538901644,1.23476388,113720.0,113710.0,0.0055631]
[1757538901862,1.32725388,113720.0,113710.0,0.0055631]
[1757538902098,1.23476388,113720.0,113710.0,0.0054631]
[1757538915382,1.23468388,113720.0,113710.0,0.0054631]
[1757538917303,1.08808388,113720.0,113710.0,0.0054631]
[1757538917467,1.23464388,113720.0,113710.0,0.0054631]
[1757538918986,1.08808388,113720.0,113710.0,0.0054631]
[1757538919198,0.84499954,113720.0,113710.0,0.0054631]
[1757538919385,1.23460388,113720.0,113710.0,0.0054631]
[1757538921260,1.23460388,113720.0,113710.0,0.00538889]
[1757538921671,1.08808388,113720.0,113710.0,0.00538889]
[1757538921868,1.23460388,113720.0,113710.0,0.00538889]
[1757538922033,1.18057388,113720.0,113710.0,0.00538889]
[1757538922305,1.08808388,113720.0,113710.0,0.00538889]
[1757538922498,1.23460388,113720.0,113710.0,0.00538889]
[1757538924295,0.69843954,113720.0,113710.0,0.00538889]
[1757538924533,0.17792055,113720.0,113710.0,0.00538889]
[1757538924752,0.17597055,113720.0,113710.0,0.24449241]
[1757538925195,0.17586909,113730.0,113710.0,0.46924501]
[1757538925406,0.17586909,113730.0,113720.0,0.17886055]
[1757538925622,0.17586909,113730.0,113720.0,0.00299]
[1757538925841,0.17594278,113740.0,113730.0,0.17585509]
[1757538926061,0.17594278,113740.0,113730.0,0.39204509]
[1757538926276,0.17594278,113740.0,113730.0,0.40406616]
[1757538927131,0.17594278,113740.0,113730.0,0.40013509]
[1757538927977,0.17594278,113740.0,113730.0,0.40313509]
[1757538929738,0.17594278,113740.0,113730.0,0.80313509]
[1757538930387,0.17594278,113740.0,113730.0,0.40313509]
[1757538930599,0.17809278,113740.0,113730.0,0.08068]
[1757538930823,0.17809278,113740.0,113730.0,0.07769]
[1757538931031,0.37291495,113740.0,113730.0,0.22425]
[1757538932590,0.17594278,113740.0,113730.0,0.22724]
[1757538932797,0.17809278,113740.0,113730.0,0.22776]
[1757538933207,0.17809278,113740.0,113730.0,0.22477]
[1757538933418,0.17809278,113740.0,113730.0,0.22776]
[1757538936977,0.17594278,113740.0,113730.0,0.40361509]
[1757538937193,0.17594278,113740.0,113730.0,0.22776]
[1757538941426,0.0001,113740.0,113730.0,0.91487861]
[1757538941861,0.0001,113740.0,113730.0,0.71528352]
[1757538942072,0.0001,113740.0,113730.0,0.89113861]
[1757538942297,0.17592472,113750.0,113730.0,0.89113861]
[1757538942512,0.17592472,113750.0,113740.0,0.00299]
[1757538942719,0.17592472,113750.0,113740.0,0.00506]
[1757538943960,0.17807472,113750.0,113740.0,0.00506]
[1757538944165,0.17807472,113750.0,113740.0,0.00516]
[1757538945468,0.17807472,113750.0,113740.0,0.00716]
[1757538945684,0.17807472,113750.0,113740.0,0.01016]
[1757538946320,0.17592472,113750.0,113740.0,0.16104]
[1757538946542,0.17592417,113750.0,113740.0,0.16104]
[1757538951359,0.17807417,113750.0,113740.0,0.15805]
[1757538952033,0.17592417,113750.0,113740.0,0.16104]
[1757538962471,0.0001,113750.0,113740.0,0.44960114]
[1757538962809,0.0001,113750.0,113740.0,0.44740315]
[1757538963228,0.0001,113750.0,113740.0,0.72252973]
[1757538963675,0.0001,113750.0,113740.0,0.57164973]
[1757538963857,0.0001,113750.0,113740.0,0.44856352]
[1757538964061,0.0001,113750.0,113740.0,0.62440315]
[1757538964270,0.17592417,113750.0,113740.0,0.84864352]
[1757538964475,0.0001,113750.0,113740.0,0.84864352]
[1757538964685,0.0001,113750.0,113740.0,1.02448315]
[1757538965649,0.17592417,113750.0,113740.0,1.02448315]
[1757538966060,0.0001,113750.0,113740.0,0.84864352]
[1757538966304,0.0001,113750.0,113740.0,1.04748315]
[1757538975269,0.0001,113750.0,113740.0,1.32260973]
[1757538975487,0.0001,113750.0,113740.0,1.66260973]
[1757538976125,0.0001,113750.0,113740.0,1.66060973]
[1757538976358,0.0001,113750.0,113740.0,1.65760973]
[1757538976574,0.0001,113750.0,113740.0,1.68698661]
[1757538976800,0.0001,113750.0,113740.0,1.69198661]
[1757538977010,0.0001,113750.0,113740.0,1.58602661]
[1757538977221,0.0001,113750.0,113740.0,1.73642661]
[1757538977939,0.0001,113750.0,113740.0,1.73342661]
[1757538978174,0.0001,113750.0,113740.0,1.73742661]
[1757538979038,0.0001,113750.0,113740.0,1.74142661]
[1757538979253,0.0001,113750.0,113740.0,1.75402193]
[1757538983707,0.0001,113750.0,113740.0,1.86457279]
[1757538984732,0.0001,113750.0,113740.0,1.85197747]
[1757538986498,0.0001,113750.0,113740.0,1.85157747]
[1757538988572,0.0001,113750.0,113740.0,1.86419669]
[1757538990068,0.0001,113750.0,113740.0,1.71419669]
[1757538990275,0.0001,113750.0,113740.0,1.86403669]
[1757538990491,0.0001,113750.0,113740.0,1.92856571]
[1757538990693,0.0001,113750.0,113740.0,1.77872571]
[1757538990899,0.0001,113750.0,113740.0,1.92852571]
[1757538992149,0.0001,113750.0,113740.0,1.77872571]
[1757538992353,0.0001,113750.0,113740.0,1.92848571]
[1757538993994,0.0001,113750.0,113740.0,1.92844571]
[1757538994639,0.0001,113750.0,113740.0,1.92840571]
[1757538997667,0.0001,113750.0,113740.0,1.92828571]
[1757539002672,0.0001,113750.0,113740.0,1.81773485]
[1757539004973,0.0001,113750.0,113740.0,1.46817485]
[1757539005181,0.0001,113750.0,113740.0,1.61757485]
[1757539006884,0.0001,113750.0,113740.0,1.60495563]
[1757539007694,0.0001,113750.0,113740.0,1.6159183]
[1757539021857,0.0001,113750.0,113740.0,1.5659183]
[1757539022210,0.0001,113750.0,113740.0,1.55138928]
[1757539024177,0.17592417,113750.0,113740.0,1.1038627]
[1757539024393,0.0001,113750.0,113740.0,1.36441403]
[1757539025409,0.0001,113750.0,113740.0,1.2537427]
[1757539034838,0.00223,113750.0,113740.0,1.2537427]
[1757539035039,0.17805417,113750.0,113740.0,0.92802307]
[1757539035251,0.17805417,113750.0,113740.0,1.2003527]
[1757539037293,0.17805417,113750.0,113740.0,1.2034227]
[1757539040761,0.17805417,113750.0,113740.0,1.02451307]
[1757539041174,0.17805417,113750.0,113740.0,0.99813619]
[1757539041378,0.17805417,113750.0,113740.0,0.84658619]
[1757539041584,0.18120417,113750.0,113740.0,1.17170582]
[1757539041789,0.17805417,113750.0,113740.0,1.17683582]
[1757539041992,0.00223,113750.0,113740.0,1.17683582]
[1757539042214,0.17592417,113750.0,113740.0,1.17683582]
[1757539042654,0.0001,113750.0,113740.0,1.17683582]
[1757539047854,0.17592417,113750.0,113740.0,1.17683582]
[1757539050313,0.17802417,113750.0,113740.0,1.17683582]
[1757539051352,0.17802417,113750.0,113740.0,1.00099619]
[1757539051536,0.17802417,113750.0,113740.0,1.17683582]
[1757539053301,0.17592417,113750.0,113740.0,1.17683582]
[1757539054171,0.17802417,113750.0,113740.0,1.17683582]
[1757539055608,0.17592417,113750.0,113740.0,1.17683582]
[1757539060483,0.17592417,113750.0,113740.0,1.20321869]
[1757539064907,0.17802417,113750.0,113740.0,1.20321869]
[1757539067751,0.17592417,113750.0,113740.0,1.20321869]
[1757539068168,0.17592417,113750.0,113740.0,1.21205491]
[1757539068406,0.0001,113750.0,113740.0,1.21205491]
[1757539068637,0.17592417,113750.0,113740.0,1.21205491]
[1757539073957,0.17592417,113750.0,113740.0,1.27953491]
[1757539079949,0.17592417,113750.0,113740.0,1.27440491]
[1757539086390,0.17592417,113750.0,113740.0,1.12512491]
[1757539086690,0.17592417,113750.0,113740.0,1.27344491]
[1757539087122,0.17592417,113750.0,113740.0,1.12512491]
[1757539087368,0.17592417,113750.0,113740.0,0.94928528]
[1757539087492,0.17592417,113750.0,113740.0,1.27340491]
[1757539090613,0.0001,113750.0,113740.0,1.27340491]
[1757539090814,0.17592417,113750.0,113740.0,1.27340491]
[1757539094774,0.0001,113750.0,113740.0,1.27340491]
[1757539094974,0.17592417,113750.0,113740.0,1.27340491]
[1757539097949,0.17592417,113750.0,113740.0,1.12512491]
[1757539098154,0.32841675,113750.0,113740.0,0.75736528]
[1757539098825,0.32841675,113750.0,113740.0,0.60928528]
[1757539099044,0.32841675,113750.0,113740.0,0.75736528]
[1757539099254,0.32841675,113750.0,113740.0,0.75336528]
[1757539099443,0.32841675,113750.0,113740.0,0.74936528]
[1757539099745,0.32841675,113750.0,113740.0,0.75336528]
[1757539099946,0.32841675,113750.0,113740.0,0.74936528]
[1757539100329,0.32841675,113750.0,113740.0,0.75236528]
[1757539100577,0.32841675,113750.0,113740.0,0.75636528]
[1757539101031,0.32841675,113750.0,113740.0,0.75236528]
[1757539101241,0.32841675,113750.0,113740.0,0.75436528]
[1757539101892,0.32841675,113750.0,113740.0,0.50992554]
[1757539102096,0.32841675,113750.0,113740.0,0.24700287]
[1757539102304,0.32841675,113750.0,113740.0,0.22062]
[1757539102565,0.32841675,113750.0,113740.0,0.242682]
[1757539103441,0.32841675,113750.0,113740.0,0.094642]
[1757539103637,0.32841675,113750.0,113740.0,0.22058]
[1757539104049,0.32841675,113750.0,113740.0,0.07258]
[1757539104253,0.32841675,113750.0,113740.0,0.22054]
[1757539104656,0.32841675,113750.0,113740.0,0.62054]
[1757539105236,0.32841675,113750.0,113740.0,0.22054]
[1757539105466,0.32841675,113750.0,113740.0,0.24523264]
[1757539108041,0.32841675,113750.0,113740.0,0.22054]
[1757539109243,0.32841675,113750.0,113740.0,0.21754]
[1757539109416,0.32841675,113750.0,113740.0,0.22054]
[1757539109779,0.19863417,113750.0,113740.0,0.21554]
[1757539110044,0.32841675,113750.0,113740.0,0.21854]
[1757539113276,0.32841675,113750.0,113740.0,0.07058]
[1757539113522,0.32841675,113750.0,113740.0,0.21842]
[1757539117006,0.32841675,113750.0,113740.0,0.07058]
[1757539117229,0.32841675,113750.0,113740.0,0.2183]
[1757539117975,0.32841675,113750.0,113740.0,0.07058]
[1757539118194,0.54572285,113750.0,113740.0,0.15078]
[1757539118412,0.57211444,113750.0,113740.0,0.15068]
[1757539118656,0.44233186,113750.0,113740.0,0.15068]
[1757539120367,0.70215186,113750.0,113740.0,0.15068]
[1757539120588,0.76903517,113750.0,113740.0,0.15068]
[1757539121152,0.57423388,113750.0,113740.0,0.15068]
[1757539121547,0.57423388,113750.0,113740.0,0.165758]
[1757539122541,0.57423388,113750.0,113740.0,0.15068]
[1757539125087,0.37943259,113750.0,113740.0,0.15068]
[1757539125514,0.57423388,113750.0,113740.0,0.15068]
[1757539129799,0.57423388,113750.0,113740.0,0.003]
[1757539137373,0.29190907,113750.0,113740.0,0.003]
[1757539137588,0.22502576,113750.0,113740.0,0.003]
[1757539138020,0.19863417,113750.0,113740.0,0.003]
[1757539138222,0.39343546,113750.0,113740.0,0.003]
[1757539138586,0.39343546,113750.0,113740.0,0.15068]
[1757539138988,0.39143546,113750.0,113740.0,0.165758]
[1757539139976,0.39655546,113750.0,113740.0,0.165758]
[1757539140683,0.20175417,113750.0,113740.0,0.165758]
[1757539140933,0.17610417,113750.0,113740.0,0.167798]
[1757539141641,0.17610417,113750.0,113740.0,0.170778]
[1757539141642,0.17402417,113750.0,113740.0,0.170778]
[1757539142123,0.17402417,113750.0,113740.0,0.170878]
[1757539142386,0.17610417,113750.0,113740.0,0.170878]
[1757539143325,0.17402417,113750.0,113740.0,0.34671763]
[1757539143536,0.17402417,113750.0,113740.0,0.28656115]
[1757539143739,0.17402417,113750.0,113740.0,0.25840152]
[1757539143977,0.17610417,113750.0,113740.0,0.25840152]
[1757539144430,0.17610417,113750.0,113740.0,0.25542152]
[1757539145078,0.17610417,113750.0,113740.0,0.65542152]
[1757539146296,0.17610417,113750.0,113740.0,0.65546152]
[1757539146740,0.17610417,113750.0,113740.0,0.65542152]
[1757539148046,0.17610417,113750.0,113740.0,0.25542152]
[1757539148699,0.17610417,113750.0,113740.0,0.65542152]
[1757539149842,0.17610417,113750.0,113740.0,0.65840152]
[1757539150062,0.17402417,113750.0,113740.0,0.51072152]
[1757539150320,0.17402417,113750.0,113740.0,0.65836152]
[1757539150877,0.17402417,113750.0,113740.0,0.68474675]
[1757539151560,0.17402417,113750.0,113740.0,0.28474675]
[1757539152044,0.17610417,113750.0,113740.0,0.68474675]
[1757539152527,0.17610417,113750.0,113740.0,0.53710675]
[1757539152781,0.37090546,113750.0,113740.0,0.68176675]
[1757539153510,0.37090546,113750.0,113740.0,0.53412675]
[1757539153695,0.37090546,113750.0,113740.0,0.68176675]
[1757539153940,0.37090546,113750.0,113740.0,0.68474675]
[1757539154381,0.37090546,113750.0,113740.0,0.68176675]
[1757539155008,0.37090546,113750.0,113740.0,0.53412675]
[1757539155216,0.37090546,113750.0,113740.0,0.68176675]
[1757539155424,0.37090546,113750.0,113740.0,0.67972675]
[1757539155914,0.37090546,113750.0,113740.0,0.74720675]
[1757539157096,0.39806546,113750.0,113740.0,0.74720675]
[1757539158671,0.39806546,113750.0,113740.0,0.59956675]
[1757539158878,0.39806546,113750.0,113740.0,0.72082152]
[1757539159078,0.39806546,113750.0,113740.0,0.57318152]
[1757539159307,0.39806546,113750.0,113740.0,0.72082152]
[1757539161447,0.39806546,113750.0,113740.0,0.32082152]
[1757539162309,0.39806546,113750.0,113740.0,0.233298]
[1757539165603,0.39806546,113750.0,113740.0,0.633298]
[1757539168401,0.39806546,113750.0,113740.0,0.233298]
[1757539169064,0.39756546,113750.0,113740.0,0.633298]
[1757539170862,0.39756546,113750.0,113740.0,0.233298]
[1757539174855,0.17560417,113750.0,113740.0,0.235438]
[1757539177104,0.17560417,113750.0,113740.0,0.24404919]
[1757539177312,0.17560417,113750.0,113740.0,0.24701919]
[1757539177522,0.17560417,113750.0,113740.0,0.24404919]
[1757539177742,0.37040546,113750.0,113740.0,0.24404919]
[1757539178698,0.37040546,113750.0,113740.0,0.24190919]
[1757539182376,0.3054223,113750.0,113740.0,0.24190919]
[1757539182575,0.17560417,113750.0,113740.0,0.24190919]
[1757539183364,0.17560417,113750.0,113740.0,0.24404919]
[1757539184209,0.17560417,113750.0,113740.0,0.24190919]
[1757539185817,0.17560417,113750.0,113740.0,0.24404919]
[1757539186096,0.17560417,113750.0,113740.0,0.24701919]
[1757539186686,0.17560417,113750.0,113740.0,0.24404919]
[1757539187527,0.17560417,113750.0,113740.0,0.24190919]
[1757539188963,0.17560417,113750.0,113740.0,0.24404919]
[1757539192466,0.17560417,113750.0,113740.0,0.64404919]
[1757539193541,0.17560417,113750.0,113740.0,0.64190919]
[1757539195378,0.17560417,113750.0,113740.0,0.233298]
[1757539195581,0.17885417,113750.0,113740.0,0.233298]
[1757539195775,0.17885417,113750.0,113740.0,0.64203596]
[1757539196222,0.20147417,113750.0,113740.0,0.64203596]
[1757539197366,0.20147417,113750.0,113740.0,0.633298]
[1757539199006,0.20147417,113750.0,113740.0,0.233298]
[1757539199434,0.20147417,113750.0,113740.0,0.633298]
[1757539201585,0.20147417,113750.0,113740.0,0.485658]
[1757539201586,0.3312923,113750.0,113740.0,0.485658]
[1757539201827,0.46111043,113750.0,113740.0,0.018178]
[1757539201998,0.46111043,113750.0,113740.0,0.15066]
[1757539202173,0.3312923,113750.0,113740.0,0.15066]
[1757539202769,0.35768276,113750.0,113740.0,0.14966]
[1757539202976,0.48750089,113750.0,113740.0,0.0021]
[1757539203200,0.48750089,113750.0,113740.0,0.0031]
[1757539203405,0.48750089,113750.0,113740.0,0.15066]
[1757539203602,0.48750089,113750.0,113740.0,0.164736]
[1757539203603,0.42247638,113750.0,113740.0,0.164736]
[1757539203809,0.42247638,113750.0,113740.0,0.162736]
[1757539204221,0.42247638,113750.0,113740.0,0.164736]
[1757539204533,0.42247638,113750.0,113740.0,0.162736]
[1757539204922,0.42247638,113750.0,113740.0,0.163736]
[1757539206449,0.42247638,113750.0,113740.0,0.016176]
[1757539206672,0.42247638,113750.0,113740.0,0.14866]
[1757539207424,0.55229451,113750.0,113740.0,0.14866]
[1757539207641,0.42247638,113750.0,113740.0,0.14866]
[1757539210585,0.42247638,113750.0,113740.0,0.0011]
[1757539210782,0.42247638,113750.0,113740.0,0.14866]
[1757539211001,0.42247638,113750.0,113740.0,0.163536]
[1757539213548,0.63981803,113750.0,113740.0,0.0011]
[1757539213992,0.97981803,113750.0,113740.0,0.0011]
[1757539215341,0.98181803,113750.0,113740.0,0.0011]
[1757539215727,1.12737803,113750.0,113740.0,0.0011]
[1757539215916,0.9995599,113750.0,113740.0,0.0011]
[1757539216120,0.9995599,113750.0,113740.0,0.0001]
[1757539216322,1.0075599,113750.0,113740.0,0.0001]
[1757539222341,0.87774177,113750.0,113740.0,0.0001]
[1757539222548,1.0075599,113750.0,113740.0,0.0001]
[1757539222935,0.8599999,113750.0,113740.0,0.0001]
[1757539223143,1.0075599,113750.0,113740.0,0.0001]
[1757539226268,0.8599999,113750.0,113740.0,0.0001]
[1757539226501,1.0075599,113750.0,113740.0,0.0001]
[1757539228047,1.00680377,113750.0,113740.0,0.00049983]
[1757539230282,0.85924377,113750.0,113740.0,0.00049983]
[1757539230484,1.00676377,113750.0,113740.0,0.00049983]
[1757539234356,1.1365819,113750.0,113740.0,0.00049983]
[1757539235608,1.00676377,113750.0,113740.0,0.00049983]
[1757539240584,0.85924377,113750.0,113740.0,0.00049983]
[1757539241011,1.00672377,113750.0,113740.0,0.00049983]
[1757539242444,1.26649774,113750.0,113740.0,0.00049983]
[1757539245126,0.87690564,113750.0,113740.0,0.00049983]
[1757539245332,1.26649774,113750.0,113740.0,0.00049983]
[1757539263897,0.87690564,113750.0,113740.0,0.00049983]
[1757539264131,1.26649774,113750.0,113740.0,0.00049983]
[1757539265888,1.07170169,113750.0,113740.0,0.00049983]
[1757539272429,1.26649774,113750.0,113740.0,0.00049983]
[1757539273681,1.07170169,113750.0,113740.0,0.00049983]
[1757539280115,1.26649774,113750.0,113740.0,0.00049983]
[1757539285335,1.26637774,113750.0,113740.0,0.00049983]
[1757539296261,1.11901774,113750.0,113740.0,0.00049983]
[1757539296433,0.87670564,113750.0,113740.0,0.00049983]
[1757539296641,1.26629774,113750.0,113740.0,0.00049983]
[1757539297062,0.72942564,113750.0,113740.0,0.00049983]
[1757539297415,1.07150169,113750.0,113740.0,0.00049983]
[1757539297620,1.26629774,113750.0,113740.0,0.00049983]
[1757539297822,1.07150169,113750.0,113740.0,0.00049983]
[1757539300245,0.87670564,113750.0,113740.0,0.00049983]
[1757539300460,0.72942564,113750.0,113740.0,0.00049983]
[1757539300666,0.92422169,113750.0,113740.0,0.00049983]
[1757539302466,1.00654412,113750.0,113740.0,0.00049983]
[1757539303934,0.70680564,113750.0,113740.0,0.00049983]
[1757539304155,0.61603212,113750.0,113740.0,0.00263983]
[1757539304696,0.61603212,113750.0,113740.0,0.00584983]
[1757539304932,0.2091585,113750.0,113740.0,0.00584983]
[1757539305148,0.18276804,113750.0,113740.0,0.03223825]
[1757539305580,0.18076804,113750.0,113740.0,0.03792658]
[1757539305796,0.17276804,113750.0,113740.0,0.03792658]
[1757539306029,0.17479804,113750.0,113740.0,0.03571658]
[1757539306686,0.17479804,113750.0,113740.0,0.03357658]
[1757539307261,0.33228652,113750.0,113740.0,0.03357658]
[1757539307486,0.33228652,113750.0,113740.0,0.00718816]
[1757539307684,0.3586767,113750.0,113740.0,0.00718816]
[1757539311063,0.4249865,113750.0,113740.0,0.00718816]
[1757539316618,0.4249865,113750.0,113740.0,0.00149983]
[1757539316619,0.9823485,113750.0,113740.0,0.00149983]
[1757539317892,0.9843485,113750.0,113740.0,0.00039983]
[1757539318201,0.9913485,113750.0,113740.0,0.00039983]
[1757539318405,0.9893485,113750.0,113740.0,0.00039983]
[1757539318613,0.9843485,113750.0,113740.0,0.00039983]
[1757539318815,0.9923485,113750.0,113740.0,0.00039983]
[1757539321467,1.1395485,113750.0,113740.0,0.00039983]
[1757539338671,1.05202498,113750.0,113740.0,0.00039983]
[1757539339100,1.1395485,113750.0,113740.0,0.00039983]
[1757539347281,1.16467508,113750.0,113740.0,1e-08]
[1757539349776,1.01747508,113750.0,113740.0,1e-08]
[1757539349992,1.16455508,113750.0,113740.0,1e-08]
[1757539355990,1.1394285,113750.0,113740.0,1e-08]
[1757539358357,0.6523485,113750.0,113740.0,1e-08]
[1757539358570,0.7993885,113750.0,113740.0,1e-08]
[1757539362702,1.1393885,113750.0,113740.0,1e-08]
[1757539363343,0.7993885,113750.0,113740.0,1e-08]
[1757539364535,0.92937626,113750.0,113740.0,1e-08]
[1757539373319,1.26937626,113750.0,113740.0,1e-08]
[1757539385175,1.28585958,113750.0,113740.0,1e-08]
[1757539397493,1.28585671,113750.0,113740.0,1e-08]
[1757539401269,1.28585754,113750.0,113740.0,1e-08]
[1757539403522,1.13881754,113750.0,113740.0,1e-08]
[1757539403785,1.28569754,113750.0,113740.0,1e-08]
[1757539406529,0.17583963,113740.0,113730.0,1e-08]
[1757539406747,1.35117928,113740.0,113730.0,1e-08]
[1757539406963,1.15850692,113740.0,113730.0,1e-08]
[1757539407207,1.18532692,113740.0,113730.0,1e-08]
[1757539407456,1.21182458,113740.0,113730.0,1e-08]
[1757539408133,1.21182458,113740.0,113730.0,0.00200001]
[1757539408134,1.21982458,113740.0,113730.0,0.00200001]
[1757539408593,1.21982458,113740.0,113730.0,1e-08]
[1757539408735,1.22382458,113740.0,113730.0,1e-08]
[1757539410229,1.4275721,113740.0,113730.0,1e-08]
[1757539410366,0.83415986,113740.0,113730.0,1e-08]
[1757539410594,1.22382458,113740.0,113730.0,1e-08]
[1757539411057,1.22386458,113740.0,113730.0,1e-08]
[1757539411446,1.22398458,113740.0,113730.0,1e-08]
[1757539411849,0.68731986,113740.0,113730.0,1e-08]
[1757539412050,0.83431986,113740.0,113730.0,1e-08]
[1757539412305,1.22398458,113740.0,113730.0,1e-08]
[1757539413042,1.22397532,113740.0,113730.0,1e-08]
[1757539414980,1.07697532,113740.0,113730.0,1e-08]
[1757539415209,1.22393532,113740.0,113730.0,1e-08]
[1757539425078,0.8342706,113740.0,113730.0,1e-08]
[1757539425264,1.22393532,113740.0,113730.0,1e-08]
[1757539426435,1.09407532,113740.0,113730.0,1e-08]
[1757539427470,1.07760553,113740.0,113730.0,1e-08]
[1757539427703,1.09407315,113740.0,113730.0,1e-08]
[1757539431317,1.09407561,113740.0,113730.0,1e-08]
[1757539443417,0.94711561,113740.0,113730.0,1e-08]
[1757539443629,1.09423561,113740.0,113730.0,1e-08]
[1757539444915,0.94711561,113740.0,113730.0,1e-08]
[1757539445107,1.09419561,113740.0,113730.0,1e-08]
[1757539448336,1.09415561,113740.0,113730.0,1e-08]
[1757539451516,1.06729561,113740.0,113730.0,1e-08]
[1757539451703,1.06729561,113740.0,113730.0,0.00197001]
[1757539451900,1.06729561,113740.0,113730.0,1e-08]
[1757539452112,1.07036561,113740.0,113730.0,1e-08]
[1757539452336,1.09458561,113740.0,113730.0,1e-08]
[1757539456140,1.09459814,113740.0,113730.0,1e-08]
[1757539465149,0.96469578,113740.0,113730.0,1e-08]
[1757539465365,0.83479342,113740.0,113730.0,1e-08]
[1757539465568,1.09459814,113740.0,113730.0,1e-08]
[1757539466958,1.09447814,113740.0,113730.0,1e-08]
[1757539467154,0.79040578,113740.0,113730.0,0.00208001]
[1757539467371,0.93728578,113740.0,113730.0,0.00208001]
[1757539467584,0.93728578,113740.0,113730.0,1e-08]
[1757539467833,1.07043814,113740.0,113730.0,1e-08]
[1757539468653,1.09393814,113740.0,113730.0,1e-08]
[1757539471670,0.83413342,113740.0,113730.0,1e-08]
[1757539471866,1.09393814,113740.0,113730.0,1e-08]
[1757539474740,1.0939362,113740.0,113730.0,1e-08]
[1757539477992,1.09393681,113740.0,113730.0,1e-08]
[1757539486529,1.22378819,113740.0,113730.0,1e-08]
[1757539487759,1.24378819,113740.0,113730.0,1e-08]
[1757539489869,1.24378852,113740.0,113730.0,1e-08]
[1757539493637,1.24378886,113740.0,113730.0,1e-08]
[1757539500430,1.21703886,113740.0,113730.0,1e-08]
[1757539500965,1.21704021,113740.0,113730.0,1e-08]
[1757539501798,1.07016021,113740.0,113730.0,1e-08]
[1757539502112,1.22022021,113740.0,113730.0,1e-08]
[1757539504606,0.83056411,113740.0,113730.0,1e-08]
[1757539504826,1.22022021,113740.0,113730.0,1e-08]
[1757539508378,1.07338021,113740.0,113730.0,1e-08]
[1757539508516,1.22022021,113740.0,113730.0,1e-08]
[1757539510882,1.24320021,113740.0,113730.0,1e-08]
[1757539511376,1.09636021,113740.0,113730.0,1e-08]
[1757539511586,1.24316021,113740.0,113730.0,1e-08]
[1757539513225,1.09636021,113740.0,113730.0,1e-08]
[1757539513367,1.24316021,113740.0,113730.0,1e-08]
[1757539522580,0.67834411,113740.0,113730.0,0.00523001]
[1757539522729,1.21480021,113740.0,113730.0,0.00523001]
[1757539524874,0.67834411,113740.0,113730.0,0.00523001]
[1757539525079,0.23433729,113740.0,113730.0,0.03020001]
[1757539525721,0.23033729,113740.0,113730.0,0.03020001]
[1757539526060,0.23733729,113740.0,113730.0,0.03120001]
[1757539527448,0.42416534,113740.0,113730.0,0.03120001]
[1757539527871,0.62599339,113740.0,113730.0,0.03120001]
[1757539528109,0.61199339,113740.0,113730.0,0.03020001]
[1757539528293,0.63299339,113740.0,113730.0,0.03220001]
[1757539528735,0.63299339,113740.0,113730.0,0.00723001]
[1757539532719,0.63506339,113740.0,113730.0,0.00723001]
[1757539533253,0.63299339,113740.0,113730.0,0.00723001]
[1757539543293,0.24333729,113740.0,113730.0,0.00723001]
[1757539543500,0.63299339,113740.0,113730.0,0.00723001]
[1757539546447,0.50306519,113740.0,113730.0,0.00723001]
[1757539560080,0.24333729,113740.0,113730.0,0.00723001]
[1757539560332,0.50306519,113740.0,113730.0,0.00723001]
[1757539565590,0.24333729,113740.0,113730.0,0.00723001]
[1757539565833,0.21693963,113740.0,113730.0,0.00942819]
[1757539566021,0.34680358,113740.0,113730.0,0.03391819]
[1757539566181,0.34680358,113740.0,113730.0,0.05634589]
[1757539567554,0.37319578,113740.0,113730.0,0.05634589]
[1757539569253,0.37319578,113740.0,113730.0,0.03185589]
[1757539570910,0.37060997,113740.0,113730.0,0.03185589]
[1757539572107,0.37060997,113740.0,113730.0,0.15610819]
[1757539573439,0.37060997,113740.0,113730.0,0.00942819]
[1757539573647,0.50047392,113740.0,113730.0,0.15610819]
[1757539579447,0.50047392,113740.0,113730.0,0.00942819]
[1757539579658,0.50047392,113740.0,113730.0,0.15606819]